[Event "Austria Championship Blitz 2024"]
[Site "Innsbruck"]
[Date "2024.06.01"]
[Round "11.15"]
[White "Schnegg, Daniel"]
[Black "Tumanyan, Gor"]
[Result "0-1"]
[ECO "A03"]
[WhiteElo "2115"]
[BlackElo "1992"]
[Annotator "RC"]
[PlyCount "74"]
[EventDate "2024.06.01"]
[EventType "swiss"]
[EventCountry "AUT"]
[SourceTitle "playchess.com"]
[Source "ChessBase"]
[SourceQuality "1"]
[TimeControl "180+2"]

1. f4 {[%emt 0:00:02]} d5 {[%emt 0:00:04]} 2. b3 {[%emt 0:00:01]} c5 {[%emt 0:00:01]} 3. e3 {[%emt 0:00:01]} Nc6 {[%emt 0:00:02]} 4. Bb2 {[%emt 0:00:00]} Nf6 {[%emt 0:00:01]} 5. Nf3 {[%emt 0:00:01]} g6 {[%emt 0:00:01]} 6. Bb5 {[%emt 0:00:01]} Bg7 {[%emt 0:00:02]} 7. O-O {[%emt 0:00:02]} O-O {[%emt 0:00:03]} 8. Bxc6 {[%emt 0:00:01]} bxc6 {[%emt 0:00:01]} 9. Ne5 {[%emt 0:00:01]} Qc7 {[%emt 0:00:07]} 10. Qc1 {[%emt 0:00:16]} Bb7 {[%emt 0:01:27]} 11. d3 {[%emt 0:00:02]} a5 {[%emt 0:00:06]} 12. a4 {[%emt 0:00:03]} Rfd8 {[%emt 0:00:12]} 13. Nd2 {[%emt 0:00:01]} e6 {[%emt 0:00:34]} 14. Ndf3 {[%emt 0:00:10]} Ba6 {[%emt 0:00:15]} 15. Ba3 {[%emt 0:00:03]} c4 {[%emt 0:00:06]} 16. Bc5 {[%emt 0:00:10]} Nd7 {[%emt 0:00:09]} 17. Bd4 {[%emt 0:00:24]} c5 {[%emt 0:00:04]} 18. Bb2 {[%emt 0:00:02]} Nxe5 {[%emt 0:00:06]} 19. Nxe5 {[%emt 0:00:02]} cxb3 {[%emt 0:00:04]} 20. cxb3 {[%emt 0:00:02]} Rab8 {[%emt 0:00:02]} 21. Qc2 {[%emt 0:00:08]} Qb6 {[%emt 0:00:01]} 22. Ra3 {[%emt 0:00:16]} c4 {[%emt 0:00:04]} 23. Bd4 {[%emt 0:00:11]} Qb4 {[%emt 0:00:01]} 24. Qb2 {[%emt 0:00:10]} Rdc8 {[%emt 0:00:09]} 25. dxc4 {[%emt 0:00:06]} dxc4 {[%emt 0:00:01]} 26. Rc1 {[%emt 0:00:07]} cxb3 {[%emt 0:00:02]} 27. h3 {[%emt 0:00:13]} Rxc1+ {[%emt 0:00:05]} 28. Qxc1 {[%emt 0:00:01]} Rc8 {[%emt 0:00:01]} 29. Qa1 {[%emt 0:00:10]} Bb7 {[%emt 0:00:04]} 30. Ng4 {[%emt 0:00:16]} Qd2 {[%emt 0:00:03]} 31. Qf1 {[%emt 0:00:06]} Bxd4 {[%emt 0:00:01]} 32. exd4 {[%emt 0:00:01]} Qxd4+ {[%emt 0:00:01]} 33. Kh1 {[%emt 0:00:01]} Qb2 {[%emt 0:00:03]} 34. Ra1 {[%emt 0:00:04]} Bxg2+ {[%emt 0:00:02]} 35. Qxg2 {[%emt 0:00:02]} Qxa1+ {[%emt 0:00:07]} 36. Kh2 {[%emt 0:00:01]} Rc2 {[%emt 0:00:00]} 37. Nf2 {[%emt 0:00:01]} Qa2 {[%emt 0:00:00]} 0-1

[Event "Austria Championship Blitz 2024"]
[Site "Innsbruck"]
[Date "2024.06.01"]
[Round "11.16"]
[White "Keferboeck, Jewgeni"]
[Black "Schranzhofer, Marco"]
[Result "1-0"]
[ECO "B12"]
[WhiteElo "1957"]
[BlackElo "1908"]
[Annotator "RC"]
[PlyCount "99"]
[EventDate "2024.06.01"]
[EventType "swiss"]
[EventCountry "AUT"]
[SourceTitle "playchess.com"]
[Source "ChessBase"]
[SourceQuality "1"]
[TimeControl "180+2"]

1. e4 {[%emt 0:00:01]} c6 {[%emt 0:00:01]} 2. d4 {[%emt 0:00:01]} d5 {[%emt 0:00:01]} 3. e5 {[%emt 0:00:01]} c5 {[%emt 0:00:01]} 4. dxc5 {[%emt 0:00:02]} e6 {[%emt 0:00:01]} 5. a3 {[%emt 0:00:02]} Bxc5 {[%emt 0:00:02]} 6. Nf3 {[%emt 0:00:03]} Nc6 {[%emt 0:00:13]} 7. b4 {[%emt 0:00:02]} Bb6 {[%emt 0:00:01]} 8. Bb2 {[%emt 0:00:01]} Nge7 {[%emt 0:00:03]} 9. Bd3 {[%emt 0:00:02]} Ng6 {[%emt 0:00:01]} 10. O-O {[%emt 0:00:03]} Nf4 {[%emt 0:00:16]} 11. c4 {[%emt 0:00:40]} dxc4 {[%emt 0:00:49]} 12. Bxc4 {[%emt 0:00:01]} Qxd1 {[%emt 0:00:01]} 13. Rxd1 {[%emt 0:00:02]} O-O {[%emt 0:00:28]} 14. Nc3 {[%emt 0:00:01]} a6 {[%emt 0:00:24]} 15. Ne4 {[%emt 0:00:11]} Ng6 {[%emt 0:00:10]} 16. Rd2 {[%emt 0:00:26]} Bc7 {[%emt 0:00:01]} 17. Nd6 {[%emt 0:00:08]} Bxd6 {[%emt 0:00:08]} 18. Rxd6 {[%emt 0:00:15]} Nce7 {[%emt 0:00:37]} 19. Nd4 {[%emt 0:00:46]} Nxe5 {[%emt 0:00:10]} 20. Be2 {[%emt 0:00:28]} N5c6 {[%emt 0:00:02]} 21. Nxc6 {[%emt 0:00:03]} Nxc6 {[%emt 0:00:01]} 22. Bf3 {[%emt 0:00:05]} Rd8 {[%emt 0:00:03]} 23. Rad1 {[%emt 0:00:03]} Rxd6 24. Rxd6 {[%emt 0:00:01]} Kf8 {[%emt 0:00:07]} 25. Bxc6 {[%emt 0:00:05]} bxc6 {[%emt 0:00:01]} 26. Rxc6 {[%emt 0:00:01]} Bb7 {[%emt 0:00:02]} 27. Rc7 {[%emt 0:00:01]} Bd5 {[%emt 0:00:07]} 28. f3 {[%emt 0:00:02]} h6 {[%emt 0:00:02]} 29. Kf2 {[%emt 0:00:00]} a5 {[%emt 0:00:03]} 30. b5 {[%emt 0:00:02]} a4 {[%emt 0:00:02]} 31. b6 {[%emt 0:00:01]} Rb8 {[%emt 0:00:01]} 32. Bd4 {[%emt 0:00:01]} f6 {[%emt 0:00:02]} 33. Bc5+ {[%emt 0:00:02]} Kg8 {[%emt 0:00:01]} 34. g3 {[%emt 0:00:02]} Kh7 {[%emt 0:00:01]} 35. Ke3 {[%emt 0:00:01]} Kg6 {[%emt 0:00:01]} 36. f4 {[%emt 0:00:04]} Rb7 {[%emt 0:00:00]} 37. Rxb7 {[%emt 0:00:19]} Bxb7 {[%emt 0:00:01]} 38. Kd4 {[%emt 0:00:01]} Kf7 {[%emt 0:00:06]} 39. Kc4 {[%emt 0:00:03]} e5 {[%emt 0:00:04]} 40. fxe5 {[%emt 0:00:03]} fxe5 {[%emt 0:00:00]} 41. Kb5 {[%emt 0:00:01]} e4 {[%emt 0:00:02]} 42. Kxa4 {[%emt 0:00:01]} Ke6 {[%emt 0:00:00]} 43. Kb5 {[%emt 0:00:02]} Kd5 {[%emt 0:00:02]} 44. a4 {[%emt 0:00:01]} Bc6+ {[%emt 0:00:04]} 45. Kb4 {[%emt 0:00:01]} Bb7 {[%emt 0:00:01]} 46. a5 {[%emt 0:00:01]} g6 {[%emt 0:00:03]} 47. Be3 {[%emt 0:00:02]} h5 {[%emt 0:00:01]} 48. h4 {[%emt 0:00:02]} Ba6 {[%emt 0:00:01]} 49. Bc5 {[%emt 0:00:04]} Bd3 {[%emt 0:00:06]} 50. b7 {[%emt 0:00:03]} 1-0

[Event "Austria Championship Blitz 2024"]
[Site "Innsbruck"]
[Date "2024.06.01"]
[Round "11.18"]
[White "Schwarz, Benedikt"]
[Black "Casagrande, Harald"]
[Result "0-1"]
[ECO "A47"]
[WhiteElo "1919"]
[BlackElo "2290"]
[Annotator "RC"]
[PlyCount "66"]
[EventDate "2024.06.01"]
[EventType "swiss"]
[EventCountry "AUT"]
[SourceTitle "playchess.com"]
[Source "ChessBase"]
[SourceQuality "1"]
[TimeControl "180+2"]

1. d4 {[%emt 0:00:01]} Nf6 {[%emt 0:00:07]} 2. Bf4 {[%emt 0:00:01]} e6 {[%emt 0:00:06]} 3. e3 {[%emt 0:00:03]} b6 {[%emt 0:00:04]} 4. Nf3 {[%emt 0:00:04]} Bb7 {[%emt 0:00:00]} 5. c3 {[%emt 0:00:04]} Be7 {[%emt 0:00:15]} 6. Nbd2 {[%emt 0:00:03]} Nh5 {[%emt 0:00:06]} 7. Bg3 {[%emt 0:00:06]} d6 {[%emt 0:00:02]} 8. Bd3 {[%emt 0:00:04]} Nd7 {[%emt 0:00:03]} 9. Qe2 {[%emt 0:00:05]} a6 {[%emt 0:00:11]} 10. e4 {[%emt 0:00:13]} c5 {[%emt 0:00:06]} 11. Nc4 {[%emt 0:00:30]} Nxg3 {[%emt 0:00:08]} 12. hxg3 {[%emt 0:00:01]} b5 {[%emt 0:00:00]} 13. Ncd2 {[%emt 0:00:09]} h6 {[%emt 0:00:07]} 14. dxc5 {[%emt 0:00:08]} Nxc5 {[%emt 0:00:23]} 15. Bc2 {[%emt 0:00:02]} Qb6 {[%emt 0:00:02]} 16. O-O {[%emt 0:00:07]} Nd7 {[%emt 0:00:13]} 17. a4 {[%emt 0:00:04]} O-O {[%emt 0:00:12]} 18. Bd3 {[%emt 0:00:10]} b4 {[%emt 0:00:10]} 19. Nc4 {[%emt 0:00:05]} Qc5 {[%emt 0:00:00]} 20. Qd2 {[%emt 0:00:16]} bxc3 {[%emt 0:00:10]} 21. Qxc3 {[%emt 0:00:02]} Rfc8 {[%emt 0:00:04]} 22. Qd2 {[%emt 0:00:05]} d5 {[%emt 0:00:18]} 23. exd5 {[%emt 0:00:07]} Qxd5 {[%emt 0:00:01]} 24. Ne3 {[%emt 0:00:09]} Qd6 {[%emt 0:00:13]} 25. Rfc1 {[%emt 0:00:04]} Nc5 {[%emt 0:00:04]} 26. Be2 {[%emt 0:00:10]} Qb6 {[%emt 0:00:08]} 27. Nc4 {[%emt 0:00:11]} Qa7 {[%emt 0:00:01]} 28. b4 {[%emt 0:00:13]} Nb3 {[%emt 0:00:05]} 29. Qb2 {[%emt 0:00:03]} Nxa1 {[%emt 0:00:41]} 30. Rxa1 Bf6 {[%emt 0:00:00]} 31. Nce5 {[%emt 0:00:03]} Bd5 {[%emt 0:00:00]} 32. Qd2 {[%emt 0:00:08]} Bxf3 {[%emt 0:00:00]} 33. Nxf3 {[%emt 0:00:03]} Bxa1 {[%emt 0:00:00]} 0-1

[Event "Austria Championship Blitz 2024"]
[Site "Innsbruck"]
[Date "2024.06.01"]
[Round "11.20"]
[White "Mira, Helene"]
[Black "Karall, Lorenz"]
[Result "1-0"]
[ECO "E93"]
[WhiteElo "2047"]
[BlackElo "1869"]
[Annotator "RC"]
[PlyCount "63"]
[EventDate "2024.06.01"]
[EventType "swiss"]
[EventCountry "AUT"]
[SourceTitle "playchess.com"]
[Source "ChessBase"]
[SourceQuality "1"]
[TimeControl "180+2"]

1. d4 {[%emt 0:00:01]} Nf6 {[%emt 0:00:02]} 2. c4 {[%emt 0:00:01]} d6 {[%emt 0:00:02]} 3. Nc3 {[%emt 0:00:01]} g6 {[%emt 0:00:00]} 4. e4 {[%emt 0:00:01]} Bg7 {[%emt 0:00:01]} 5. Be2 {[%emt 0:00:01]} Nbd7 {[%emt 0:00:02]} 6. Nf3 {[%emt 0:00:01]} e5 {[%emt 0:00:02]} 7. d5 {[%emt 0:00:02]} O-O {[%emt 0:00:03]} 8. Be3 {[%emt 0:00:01]} Re8 {[%emt 0:00:02]} 9. Nd2 {[%emt 0:00:02]} c6 {[%emt 0:00:01]} 10. O-O {[%emt 0:00:03]} a6 {[%emt 0:00:04]} 11. Qc2 {[%emt 0:00:06]} Nf8 {[%emt 0:00:06]} 12. f3 {[%emt 0:00:06]} Nh5 {[%emt 0:00:06]} 13. Rfd1 {[%emt 0:00:04]} Nf4 {[%emt 0:00:07]} 14. Bf1 {[%emt 0:00:01]} Qg5 {[%emt 0:00:04]} 15. Kh1 {[%emt 0:00:12]} Qh5 {[%emt 0:00:09]} 16. g3 {[%emt 0:00:11]} Nh3 {[%emt 0:00:12]} 17. Bg2 {[%emt 0:00:35]} Bh6 {[%emt 0:00:02]} 18. Nf1 {[%emt 0:00:01]} Ng5 {[%emt 0:00:14]} 19. Qf2 {[%emt 0:00:20]} c5 {[%emt 0:00:03]} 20. Nd2 {[%emt 0:00:01]} Bh3 {[%emt 0:00:21]} 21. g4 {[%emt 0:00:07]} Bxg2+ {[%emt 0:00:04]} 22. Qxg2 {[%emt 0:00:02]} Qh4 {[%emt 0:00:08]} 23. Bf2 {[%emt 0:00:02]} Qh3 {[%emt 0:00:02]} 24. Rf1 {[%emt 0:00:10]} f5 {[%emt 0:00:02]} 25. gxf5 {[%emt 0:00:02]} gxf5 {[%emt 0:00:02]} 26. Rg1 {[%emt 0:00:06]} f4 {[%emt 0:00:08]} 27. Qxh3 {[%emt 0:00:04]} Kg7 {[%emt 0:00:06]} 28. Rxg5+ {[%emt 0:00:02]} Bxg5 {[%emt 0:00:01]} 29. Rg1 {[%emt 0:00:01]} h6 {[%emt 0:00:03]} 30. Qf5 {[%emt 0:00:03]} Kh8 {[%emt 0:00:17]} 31. h4 {[%emt 0:00:01]} Bd8 {[%emt 0:00:25]} 32. Qf7 {[%emt 0:00:04]} 1-0

[Event "Austria Championship Blitz 2024"]
[Site "Innsbruck"]
[Date "2024.06.01"]
[Round "11.21"]
[White "Leonov, Leonid"]
[Black "Hatzl, Johannes"]
[Result "0-1"]
[ECO "A01"]
[WhiteElo "1739"]
[BlackElo "2074"]
[Annotator "RC"]
[PlyCount "64"]
[EventDate "2024.06.01"]
[EventType "swiss"]
[EventCountry "AUT"]
[SourceTitle "playchess.com"]
[Source "ChessBase"]
[SourceQuality "1"]
[TimeControl "180+2"]

1. b3 {[%emt 0:00:02]} d6 {[%emt 0:00:05]} 2. Bb2 {[%emt 0:00:01]} e5 {[%emt 0:00:01]} 3. e3 {[%emt 0:00:01]} Nc6 {[%emt 0:00:07]} 4. Nf3 {[%emt 0:00:05]} g6 {[%emt 0:00:04]} 5. d4 {[%emt 0:00:05]} Bg7 {[%emt 0:00:09]} 6. c4 {[%emt 0:00:14]} exd4 {[%emt 0:00:09]} 7. Nxd4 {[%emt 0:00:01]} Nxd4 {[%emt 0:00:06]} 8. Bxd4 {[%emt 0:00:02]} Nf6 {[%emt 0:00:09]} 9. Nc3 {[%emt 0:00:02]} O-O {[%emt 0:00:05]} 10. Be2 {[%emt 0:00:02]} a6 {[%emt 0:00:23]} 11. Rc1 {[%emt 0:00:02]} Bd7 {[%emt 0:00:09]} 12. O-O {[%emt 0:00:03]} Bc6 {[%emt 0:00:01]} 13. Bf3 {[%emt 0:00:04]} Qd7 {[%emt 0:00:04]} 14. Qe2 {[%emt 0:00:03]} b6 {[%emt 0:00:12]} 15. Rc2 {[%emt 0:00:03]} Bxf3 {[%emt 0:00:06]} 16. Qxf3 {[%emt 0:00:02]} Qe7 {[%emt 0:00:15]} 17. Rfc1 {[%emt 0:00:05]} Nd7 {[%emt 0:00:11]} 18. Bxg7 {[%emt 0:00:03]} Kxg7 {[%emt 0:00:01]} 19. Qc6 {[%emt 0:00:01]} Ne5 {[%emt 0:00:03]} 20. Qe4 {[%emt 0:00:06]} Rfe8 {[%emt 0:00:05]} 21. Nd5 {[%emt 0:00:03]} Qd7 {[%emt 0:00:08]} 22. Qh4 {[%emt 0:00:03]} Re6 {[%emt 0:00:17]} 23. Rd1 {[%emt 0:00:20]} Rc8 {[%emt 0:00:02]} 24. Nf4 {[%emt 0:00:12]} Ree8 {[%emt 0:00:06]} 25. Nd5 {[%emt 0:00:03]} Qf5 {[%emt 0:00:09]} 26. e4 {[%emt 0:00:10]} Qe6 {[%emt 0:00:08]} 27. f3 {[%emt 0:00:06]} Nd7 {[%emt 0:00:09]} 28. Ne3 {[%emt 0:00:03]} Qf6 {[%emt 0:00:02]} 29. Qh3 {[%emt 0:00:03]} Qe6 {[%emt 0:00:02]} 30. Qh4 {[%emt 0:00:04]} Qf6 {[%emt 0:00:06]} 31. Qg4 {[%emt 0:00:01]} Qe6 {[%emt 0:00:01]} 32. Nf5+ {[%emt 0:00:05]} Kh8 {[%emt 0:00:05]} 0-1

[Event "Austria Championship Blitz 2024"]
[Site "Innsbruck"]
[Date "2024.06.01"]
[Round "11.22"]
[White "Muehlbacher, Bernhard"]
[Black "Walder, Elias"]
[Result "0-1"]
[ECO "A34"]
[WhiteElo "1960"]
[BlackElo "2035"]
[Annotator "RC"]
[PlyCount "62"]
[EventDate "2024.06.01"]
[EventType "swiss"]
[EventCountry "AUT"]
[SourceTitle "playchess.com"]
[Source "ChessBase"]
[SourceQuality "1"]
[TimeControl "180+2"]

1. c4 {[%emt 0:00:01]} Nf6 {[%emt 0:00:02]} 2. g3 {[%emt 0:00:00]} e6 {[%emt 0:00:01]} 3. Bg2 {[%emt 0:00:01]} c5 {[%emt 0:00:01]} 4. Nf3 {[%emt 0:00:07]} Nc6 {[%emt 0:00:01]} 5. O-O {[%emt 0:00:02]} d5 {[%emt 0:00:01]} 6. cxd5 Nxd5 {[%emt 0:00:01]} 7. a3 {[%emt 0:00:12]} Be7 {[%emt 0:00:01]} 8. Nc3 {[%emt 0:00:05]} O-O {[%emt 0:00:03]} 9. d4 {[%emt 0:00:06]} cxd4 {[%emt 0:00:05]} 10. Nxd4 {[%emt 0:00:02]} Nxc3 {[%emt 0:00:02]} 11. bxc3 {[%emt 0:00:02]} Qc7 {[%emt 0:00:20]} 12. Bf4 {[%emt 0:00:10]} e5 {[%emt 0:00:03]} 13. Nxc6 {[%emt 0:00:08]} bxc6 {[%emt 0:00:01]} 14. Be3 {[%emt 0:00:16]} Ba6 {[%emt 0:00:01]} 15. Re1 {[%emt 0:00:05]} Rfd8 {[%emt 0:00:04]} 16. Qc2 {[%emt 0:00:06]} Rab8 {[%emt 0:00:09]} 17. c4 {[%emt 0:00:00]} Bc8 {[%emt 0:00:24]} 18. c5 {[%emt 0:00:20]} Be6 {[%emt 0:00:05]} 19. Be4 {[%emt 0:00:06]} h6 {[%emt 0:00:05]} 20. f4 {[%emt 0:00:06]} Bf6 {[%emt 0:00:10]} 21. Rab1 {[%emt 0:00:09]} Bd5 {[%emt 0:00:16]} 22. Bxd5 {[%emt 0:00:48]} Rxd5 {[%emt 0:00:01]} 23. Rxb8+ Qxb8 {[%emt 0:00:01]} 24. Rb1 {[%emt 0:00:15]} Qc7 {[%emt 0:00:01]} 25. fxe5 {[%emt 0:00:09]} Bxe5 {[%emt 0:00:06]} 26. Bf2 {[%emt 0:00:14]} g6 {[%emt 0:00:03]} 27. e4 {[%emt 0:00:04]} Rd8 {[%emt 0:00:07]} 28. Qa4 {[%emt 0:00:10]} Kg7 {[%emt 0:00:09]} 29. Kg2 {[%emt 0:00:09]} Rd3 {[%emt 0:00:07]} 30. Qc4 {[%emt 0:00:05]} Qd7 {[%emt 0:00:04]} 31. Rf1 {[%emt 0:00:06]} Rxa3 {[%emt 0:01:29]} 0-1

[Event "Austria Championship Blitz 2024"]
[Site "Innsbruck"]
[Date "2024.06.01"]
[Round "11.23"]
[White "Guba, Viktor"]
[Black "Froewis, Annika"]
[Result "1-0"]
[ECO "C47"]
[WhiteElo "1891"]
[BlackElo "2075"]
[Annotator "RC"]
[PlyCount "59"]
[EventDate "2024.06.01"]
[EventType "swiss"]
[EventCountry "AUT"]
[SourceTitle "playchess.com"]
[Source "ChessBase"]
[SourceQuality "1"]
[TimeControl "180+2"]

1. e4 {[%emt 0:00:01]} e5 {[%emt 0:00:02]} 2. Nf3 {[%emt 0:00:01]} Nc6 {[%emt 0:00:01]} 3. Nc3 {[%emt 0:00:04]} Nf6 {[%emt 0:00:02]} 4. a3 {[%emt 0:00:01]} d6 {[%emt 0:00:12]} 5. d4 {[%emt 0:00:02]} exd4 {[%emt 0:00:01]} 6. Nxd4 {[%emt 0:00:01]} Be7 {[%emt 0:00:18]} 7. Be2 {[%emt 0:00:12]} O-O {[%emt 0:00:03]} 8. O-O {[%emt 0:00:02]} Re8 {[%emt 0:00:01]} 9. Be3 {[%emt 0:00:05]} Bf8 {[%emt 0:00:09]} 10. f3 {[%emt 0:00:13]} Ne5 {[%emt 0:00:05]} 11. Qd2 {[%emt 0:00:24]} c5 {[%emt 0:00:29]} 12. Nb3 {[%emt 0:00:06]} a6 {[%emt 0:00:08]} 13. a4 {[%emt 0:00:05]} Be6 {[%emt 0:00:14]} 14. Bg5 {[%emt 0:00:21]} h6 {[%emt 0:00:19]} 15. Bh4 {[%emt 0:00:05]} Ng6 {[%emt 0:00:05]} 16. Bg3 {[%emt 0:00:07]} Nh5 {[%emt 0:00:18]} 17. Bf2 {[%emt 0:00:16]} Nhf4 {[%emt 0:00:06]} 18. Be3 {[%emt 0:00:01]} Nxe2+ {[%emt 0:00:06]} 19. Qxe2 {[%emt 0:00:06]} Ne5 {[%emt 0:00:07]} 20. Nd2 {[%emt 0:00:13]} Qb6 {[%emt 0:00:09]} 21. Rab1 {[%emt 0:00:15]} Rad8 {[%emt 0:00:11]} 22. b4 {[%emt 0:00:06]} Qc7 {[%emt 0:00:10]} 23. bxc5 {[%emt 0:00:29]} dxc5 {[%emt 0:00:03]} 24. h3 {[%emt 0:00:04]} b6 {[%emt 0:00:06]} 25. f4 {[%emt 0:00:06]} Nc6 {[%emt 0:00:03]} 26. Nc4 {[%emt 0:00:08]} Bxc4 27. Qxc4 {[%emt 0:00:01]} Nd4 {[%emt 0:00:13]} 28. Nd5 {[%emt 0:00:08]} Qc8 {[%emt 0:00:13]} 29. Bxd4 {[%emt 0:00:04]} Rxe4 {[%emt 0:00:03]} 30. Nxb6 {[%emt 0:00:04]} 1-0

[Event "Austria Championship Blitz 2024"]
[Site "Innsbruck"]
[Date "2024.06.01"]
[Round "11.24"]
[White "Spierings, Benjamin"]
[Black "Kummer, Helmut"]
[Result "0-1"]
[ECO "C56"]
[WhiteElo "1829"]
[BlackElo "2212"]
[Annotator "RC"]
[PlyCount "70"]
[EventDate "2024.06.01"]
[EventType "swiss"]
[EventCountry "AUT"]
[SourceTitle "playchess.com"]
[Source "ChessBase"]
[SourceQuality "1"]
[TimeControl "180+2"]

1. e4 {[%emt 0:00:01]} e5 {[%emt 0:00:01]} 2. Bc4 {[%emt 0:00:01]} Nf6 {[%emt 0:00:01]} 3. d4 {[%emt 0:00:01]} Nc6 {[%emt 0:00:16]} 4. Nf3 {[%emt 0:00:01]} exd4 {[%emt 0:00:06]} 5. e5 {[%emt 0:00:03]} d5 {[%emt 0:00:02]} 6. Bb5 {[%emt 0:00:03]} Ne4 {[%emt 0:00:01]} 7. Nxd4 {[%emt 0:00:02]} Bd7 {[%emt 0:00:06]} 8. Bxc6 {[%emt 0:00:05]} bxc6 {[%emt 0:00:02]} 9. O-O {[%emt 0:00:03]} Bc5 {[%emt 0:00:05]} 10. Be3 {[%emt 0:00:08]} Bb6 {[%emt 0:00:04]} 11. Nd2 {[%emt 0:00:23]} Nxd2 {[%emt 0:00:09]} 12. Qxd2 {[%emt 0:00:01]} c5 {[%emt 0:00:08]} 13. Nf3 {[%emt 0:00:14]} d4 {[%emt 0:00:03]} 14. Bf4 {[%emt 0:00:02]} Bc6 {[%emt 0:00:10]} 15. Qd3 {[%emt 0:00:20]} Qd5 {[%emt 0:00:14]} 16. Rad1 {[%emt 0:00:15]} O-O-O {[%emt 0:00:05]} 17. h3 {[%emt 0:00:20]} h6 {[%emt 0:00:01]} 18. c3 {[%emt 0:00:13]} g5 {[%emt 0:00:07]} 19. Bg3 {[%emt 0:00:05]} Qe4 {[%emt 0:00:53]} 20. cxd4 {[%emt 0:00:18]} Qxd3 {[%emt 0:00:03]} 21. Rxd3 {[%emt 0:00:03]} Bb5 {[%emt 0:00:01]} 22. Rfd1 {[%emt 0:00:04]} Bxd3 {[%emt 0:00:01]} 23. Rxd3 {[%emt 0:00:01]} cxd4 {[%emt 0:00:02]} 24. b4 {[%emt 0:00:12]} Rd5 {[%emt 0:00:08]} 25. a4 {[%emt 0:00:05]} a6 {[%emt 0:00:03]} 26. Kf1 {[%emt 0:00:13]} Re8 {[%emt 0:00:03]} 27. a5 {[%emt 0:00:10]} Ba7 {[%emt 0:00:01]} 28. Ke2 {[%emt 0:00:03]} f6 {[%emt 0:00:02]} 29. Kd2 {[%emt 0:00:05]} fxe5 {[%emt 0:00:01]} 30. Nxe5 {[%emt 0:00:02]} Rdxe5 {[%emt 0:00:02]} 31. Bxe5 {[%emt 0:00:00]} Rxe5 {[%emt 0:00:01]} 32. Rf3 {[%emt 0:00:09]} Rb5 {[%emt 0:00:02]} 33. Rf6 {[%emt 0:00:04]} Kb7 {[%emt 0:00:12]} 34. Rxh6 {[%emt 0:00:20]} Rxb4 {[%emt 0:00:54]} 35. Rg6 {[%emt 0:00:00]} Rb5 {[%emt 0:00:00]} 0-1